[Event "NJSK 2024 C"]
[Site "Groningen, Netherlands"]
[Date "2024.04.27"]
[Round "1.13"]
[White "Koppenens, Oscar"]
[Black "Stylianou, Alexandros"]
[Result "1-0"]
[TimeControl "90min/40moves + 30min + 30sec/move"]
[WhiteElo "1893"]
[BlackElo "1642"]

1. e4 {[%clk 01:30:57]} {[%emt 00:00:04]} c5 {[%clk 01:30:42]} {[%emt
00:00:19]} 2. Nf3 {[%clk 01:31:11]} {[%emt 00:00:13]} Nc6 {[%clk 01:30:58]}
{[%emt 00:00:16]} 3. d4 {[%clk 01:31:21]} {[%emt 00:00:21]} cxd4 {[%clk
01:31:09]} {[%emt 00:00:18]} 4. Nxd4 {[%clk 01:31:44]} {[%emt 00:00:07]} g6
{[%clk 01:31:32]} {[%emt 00:00:07]} 5. Be3 {[%clk 01:31:49]} {[%emt 00:00:25]}
Bg7 {[%clk 01:31:38]} {[%emt 00:00:24]} 6. Nc3 {[%clk 01:29:32]} {[%emt
00:02:47]} e6 {[%clk 01:31:24]} {[%emt 00:00:44]} 7. Ndb5 {[%clk 01:28:51]}
{[%emt 00:01:10]} Bxc3+ {[%clk 01:13:49]} {[%emt 00:18:05]} 8. bxc3 {[%clk
01:27:32]} {[%emt 00:01:49]} d5 {[%clk 01:13:49]} {[%emt 00:00:31]} 9. exd5
{[%clk 01:27:34]} {[%emt 00:00:28]} exd5 {[%clk 01:13:52]} {[%emt 00:00:27]} 10.
Qxd5 {[%clk 01:26:42]} {[%emt 00:01:22]} Bf5 {[%clk 01:12:44]} {[%emt
00:01:37]} 11. Nd6+ {[%clk 01:26:51]} {[%emt 00:00:21]} 1-0

[Event "NJSK 2024 C"]
[Site "Groningen, Netherlands"]
[Date "2024.04.27"]
[Round "1.14"]
[White "De Jong, Lode"]
[Black "Roorda, Cas"]
[Result "1-0"]
[TimeControl "90min/40moves + 30min + 30sec/move"]
[WhiteElo "1587"]
[BlackElo "1828"]

1. d4 {[%clk 01:30:59]} d5 {[%clk 01:30:54]} {[%emt 00:00:07]} 2. c4 {[%clk
01:31:26]} {[%emt 00:00:03]} c6 {[%clk 01:31:22]} {[%emt 00:00:02]} 3. Nf3
{[%clk 01:31:50]} {[%emt 00:00:05]} Nf6 {[%clk 01:31:47]} {[%emt 00:00:06]} 4.
g3 {[%clk 01:32:17]} {[%emt 00:00:03]} Bf5 {[%clk 01:32:08]} {[%emt 00:00:09]}
5. Nc3 {[%clk 01:32:37]} {[%emt 00:00:09]} e6 {[%clk 01:32:27]} {[%emt
00:00:12]} 6. Nh4 {[%clk 01:33:04]} {[%emt 00:00:03]} dxc4 {[%clk 01:28:28]}
{[%emt 00:04:29]} 7. Nxf5 {[%clk 01:32:04]} {[%emt 00:01:30]} exf5 {[%clk
01:28:53]} {[%emt 00:00:05]} 8. Bg2 {[%clk 01:32:28]} {[%emt 00:00:05]} Nbd7
{[%clk 01:28:57]} {[%emt 00:00:26]} 9. O-O {[%clk 01:30:50]} {[%emt 00:02:09]}
Nb6 {[%clk 01:28:11]} {[%emt 00:01:16]} 10. a4 {[%clk 01:28:17]} {[%emt
00:03:04]} a5 {[%clk 01:27:58]} {[%emt 00:00:42]} 11. Qc2 {[%clk 01:25:33]}
{[%emt 00:03:14]} g6 {[%clk 01:11:46]} {[%emt 00:16:41]} 12. e4 {[%clk
01:17:50]} {[%emt 00:08:13]} fxe4 {[%clk 00:57:54]} {[%emt 00:14:23]} 13. Nxe4
{[%clk 01:10:52]} {[%emt 00:07:28]} Nxe4 {[%clk 00:35:50]} {[%emt 00:22:33]} 14.
Qxe4+ {[%clk 01:09:38]} {[%emt 00:01:44]} Qe7 {[%clk 00:35:45]} {[%emt
00:00:36]} 15. Qc2 {[%clk 00:47:54]} {[%emt 00:22:14]} Bg7 {[%clk 00:34:31]}
{[%emt 00:01:44]} 16. b3 {[%clk 00:47:01]} {[%emt 00:01:23]} Bxd4 {[%clk
00:26:42]} {[%emt 00:08:18]} 17. Ba3 {[%clk 00:45:42]} {[%emt 00:01:49]} Qf6
{[%clk 00:23:02]} {[%emt 00:04:11]} 18. Rae1+ {[%clk 00:36:20]} {[%emt
00:09:52]} Kd7 {[%clk 00:22:03]} {[%emt 00:01:29]} 19. Rd1 {[%clk 00:36:21]}
{[%emt 00:00:28]} Kc7 {[%clk 00:21:27]} {[%emt 00:01:06]} 20. Qe4 {[%clk
00:27:11]} {[%emt 00:09:40]} Bc3 {[%clk 00:16:54]} {[%emt 00:05:03]} 21. Bd6+
{[%clk 00:26:29]} {[%emt 00:01:12]} Kc8 {[%clk 00:17:08]} {[%emt 00:00:16]} 22.
Bh3+ {[%clk 00:26:29]} {[%emt 00:00:30]} Nd7 {[%clk 00:16:48]} {[%emt
00:00:51]} 23. Bxd7+ {[%clk 00:22:36]} {[%emt 00:04:23]} 1-0

[Event "NJSK 2024 C"]
[Site "Groningen, Netherlands"]
[Date "2024.04.28"]
[Round "2.1"]
[White "Terlouw, Wouter"]
[Black "Ritzerveld, Noah"]
[Result "1-0"]
[TimeControl "90min/40moves + 30min + 30sec/move"]
[WhiteElo "1961"]
[BlackElo "2103"]

1. d4 {[%clk 01:30:56]} {[%emt 00:00:04]} d5 {[%clk 01:30:55]} {[%emt
00:00:05]} 2. Nf3 {[%clk 01:31:21]} {[%emt 00:00:05]} Nf6 {[%clk 01:31:21]}
{[%emt 00:00:03]} 3. e3 {[%clk 01:31:46]} {[%emt 00:00:05]} c6 {[%clk
01:31:32]} {[%emt 00:00:20]} 4. Bd3 {[%clk 01:32:11]} {[%emt 00:00:06]} Bg4
{[%clk 01:31:25]} {[%emt 00:00:36]} 5. h3 {[%clk 01:32:32]} {[%emt 00:00:09]}
Bh5 {[%clk 01:31:30]} {[%emt 00:00:25]} 6. c4 {[%clk 01:32:54]} {[%emt
00:00:08]} e6 {[%clk 01:31:10]} {[%emt 00:00:50]} 7. Qb3 {[%clk 01:33:03]}
{[%emt 00:00:22]} Qb6 {[%clk 01:29:37]} {[%emt 00:02:02]} 8. Nc3 {[%clk
01:32:27]} {[%emt 00:01:06]} Nbd7 {[%clk 01:28:37]} {[%emt 00:01:30]} 9. g4
{[%clk 01:29:59]} {[%emt 00:02:58]} Bg6 {[%clk 01:28:07]} {[%emt 00:01:00]} 10.
Bxg6 {[%clk 01:29:46]} {[%emt 00:00:43]} hxg6 {[%clk 01:28:10]} {[%emt
00:00:26]} 11. g5 {[%clk 01:29:43]} {[%emt 00:00:34]} Nh7 {[%clk 01:22:28]}
{[%emt 00:06:12]} 12. e4 {[%clk 01:24:11]} {[%emt 00:06:02]} dxe4 {[%clk
01:15:36]} {[%emt 00:07:22]} 13. Nxe4 {[%clk 01:24:23]} {[%emt 00:00:18]} Bb4+
{[%clk 01:14:33]} {[%emt 00:01:33]} 14. Kf1 {[%clk 01:21:37]} {[%emt 00:03:15]}
Be7 {[%clk 01:12:40]} {[%emt 00:02:23]} 15. Bf4 {[%clk 01:17:14]} {[%emt
00:04:53]} O-O {[%clk 01:11:30]} {[%emt 00:01:41]} 16. c5 {[%clk 01:15:08]}
{[%emt 00:02:37]} Qxb3 {[%clk 00:58:58]} {[%emt 00:13:01]} 17. axb3 {[%clk
01:15:27]} {[%emt 00:00:11]} f6 {[%clk 00:56:12]} {[%emt 00:03:16]} 18. Kg2
{[%clk 01:09:13]} {[%emt 00:06:44]} fxg5 {[%clk 00:54:28]} {[%emt 00:02:14]} 19.
Bg3 {[%clk 01:09:03]} {[%emt 00:00:40]} Rf5 {[%clk 00:50:55]} {[%emt 00:04:03]}
20. Rhe1 {[%clk 01:08:15]} {[%emt 00:01:17]} a6 {[%clk 00:46:29]} {[%emt
00:04:57]} 21. Rad1 {[%clk 00:57:33]} {[%emt 00:11:13]} Raf8 {[%clk 00:41:54]}
{[%emt 00:05:04]} 22. Rd3 {[%clk 00:56:34]} {[%emt 00:01:28]} Rd8 {[%clk
00:37:44]} {[%emt 00:04:41]} 23. Bd6 {[%clk 00:48:40]} {[%emt 00:08:24]} Bxd6
{[%clk 00:31:47]} {[%emt 00:06:27]} 24. Nxd6 {[%clk 00:48:58]} {[%emt
00:00:11]} Rd5 {[%clk 00:29:57]} {[%emt 00:02:21]} 25. Rde3 {[%clk 00:47:51]}
{[%emt 00:01:37]} Nhf8 {[%clk 00:29:02]} {[%emt 00:01:25]} 26. Nxb7 {[%clk
00:45:54]} {[%emt 00:02:27]} Rb8 {[%clk 00:29:23]} {[%emt 00:00:09]} 27. Na5
{[%clk 00:45:41]} {[%emt 00:00:41]} Rc8 {[%clk 00:29:03]} {[%emt 00:00:53]} 28.
Nc4 {[%clk 00:45:22]} {[%emt 00:00:49]} Rc7 {[%clk 00:27:16]} {[%emt 00:02:17]}
29. Ra1 {[%clk 00:41:49]} {[%emt 00:04:03]} Nb8 {[%clk 00:24:47]} {[%emt
00:03:00]} 30. Re4 {[%clk 00:38:13]} {[%emt 00:04:05]} Rf7 {[%clk 00:23:12]}
{[%emt 00:02:05]} 31. Ne3 {[%clk 00:35:35]} {[%emt 00:03:08]} Rd8 {[%clk
00:23:05]} {[%emt 00:00:37]} 32. Nxg5 {[%clk 00:35:07]} {[%emt 00:00:58]} Rb7
{[%clk 00:22:57]} {[%emt 00:00:37]} 33. Ra3 {[%clk 00:34:31]} {[%emt 00:01:05]}
Re7 {[%clk 00:20:04]} {[%emt 00:03:25]} 34. Nc4 {[%clk 00:32:57]} {[%emt
00:02:03]} Rd5 {[%clk 00:19:13]} {[%emt 00:01:21]} 35. h4 {[%clk 00:32:25]}
{[%emt 00:01:02]} Rd8 {[%clk 00:18:11]} {[%emt 00:01:32]} 36. Nd6 {[%clk
00:32:03]} {[%emt 00:00:53]} Rdd7 {[%clk 00:17:26]} {[%emt 00:01:16]} 37. b4
{[%clk 00:31:00]} {[%emt 00:01:32]} Nh7 {[%clk 00:17:23]} {[%emt 00:00:33]} 38.
Nxh7 {[%clk 00:29:34]} {[%emt 00:01:56]} Kxh7 {[%clk 00:17:46]} {[%emt
00:00:06]} 39. Rae3 {[%clk 00:29:53]} {[%emt 00:00:12]} Rd8 {[%clk 00:16:46]}
{[%emt 00:01:30]} 40. Rxe6 {[%emt 00:01:14]} Rxe6 {[%clk 00:17:11]} 41. Rxe6
{[%clk 00:29:38]} {[%emt 00:00:05]} Nd7 {[%clk 00:17:35]} {[%emt 00:00:07]} 42.
Re7 {[%clk 00:29:26]} {[%emt 00:00:38]} Nf6 {[%clk 00:17:51]} {[%emt 00:00:17]}
43. Rc7 {[%clk 00:28:41]} {[%emt 00:01:16]} Rb8 {[%clk 00:18:13]} {[%emt
00:00:08]} 44. Rxc6 {[%clk 00:28:08]} {[%emt 00:01:03]} Rxb4 {[%clk 00:18:38]}
{[%emt 00:00:05]} 45. Rxa6 {[%clk 00:28:33]} {[%emt 00:00:05]} Rxd4 {[%clk
00:18:57]} {[%emt 00:00:11]} 46. c6 {[%clk 00:27:19]} {[%emt 00:01:44]} Rxd6
{[%clk 00:18:38]} {[%emt 00:00:48]} 47. c7 {[%clk 00:27:44]} {[%emt 00:00:06]}
Rxa6 {[%clk 00:18:44]} {[%emt 00:00:24]} 48. c8=Q {[%clk 00:28:07]} {[%emt
00:00:07]} Ra4 {[%clk 00:18:55]} {[%emt 00:00:17]} 49. Qc6 {[%clk 00:28:09]}
{[%emt 00:00:28]} Rb4 {[%clk 00:18:34]} {[%emt 00:00:53]} 50. Qc3 {[%clk
00:28:14]} {[%emt 00:00:22]} Rg4+ {[%clk 00:17:06]} {[%emt 00:02:00]} 51. Kh3
{[%clk 00:27:37]} {[%emt 00:01:08]} Rf4 {[%clk 00:15:46]} {[%emt 00:01:50]} 52.
Qd2 {[%clk 00:25:26]} {[%emt 00:02:41]} Rf3+ {[%clk 00:13:40]} {[%emt
00:02:36]} 53. Kg2 {[%clk 00:25:34]} {[%emt 00:00:19]} Rb3 {[%clk 00:13:53]}
{[%emt 00:00:19]} 54. f3 {[%clk 00:25:09]} {[%emt 00:00:56]} Rb5 {[%clk
00:12:45]} {[%emt 00:01:38]} 55. Kg3 {[%clk 00:23:52]} {[%emt 00:01:41]} Rb3
{[%clk 00:10:54]} {[%emt 00:02:26]} 56. Qc2 {[%clk 00:23:57]} {[%emt 00:00:25]}
Rb4 {[%clk 00:10:48]} {[%emt 00:00:37]} 57. Qc3 {[%clk 00:23:51]} {[%emt
00:00:35]} Rb5 {[%clk 00:07:05]} {[%emt 00:04:13]} 58. b4 {[%clk 00:23:02]}
{[%emt 00:01:20]} Nd5 {[%clk 00:05:58]} {[%emt 00:01:37]} 59. Qc4 {[%clk
00:23:11]} {[%emt 00:00:11]} Rxb4 {[%clk 00:06:04]} {[%emt 00:00:33]} 60. Qxd5
{[%clk 00:23:32]} {[%emt 00:00:09]} Rb6 {[%clk 00:06:18]} {[%emt 00:00:16]} 61.
Kg4 {[%clk 00:22:46]} {[%emt 00:01:16]} Rf6 {[%clk 00:06:19]} {[%emt 00:00:29]}
62. h5 {[%clk 00:21:52]} {[%emt 00:01:25]} gxh5+ {[%clk 00:06:12]} {[%emt
00:00:37]} 63. Qxh5+ {[%clk 00:22:14]} {[%emt 00:00:08]} Kg8 {[%clk 00:06:18]}
{[%emt 00:00:23]} 64. f4 {[%clk 00:22:22]} {[%emt 00:00:23]} Rh6 {[%clk
00:06:37]} {[%emt 00:00:10]} 65. Qe8+ {[%clk 00:22:39]} {[%emt 00:00:14]} Kh7
{[%clk 00:06:49]} {[%emt 00:00:17]} 66. Kg5 {[%clk 00:23:06]} {[%emt 00:00:03]}
Rb6 {[%clk 00:06:14]} {[%emt 00:01:05]} 67. Qe4+ {[%clk 00:23:10]} {[%emt
00:00:26]} Kh8 {[%clk 00:06:20]} {[%emt 00:00:23]} 68. Qh1+ {[%clk 00:22:54]}
{[%emt 00:00:47]} Kg8 {[%clk 00:06:43]} {[%emt 00:00:07]} 69. Qh3 {[%clk
00:22:43]} {[%emt 00:00:38]} Rf6 {[%clk 00:07:01]} {[%emt 00:00:16]} 70. Qc8+
{[%clk 00:22:55]} {[%emt 00:00:17]} Kh7 {[%clk 00:07:26]} {[%emt 00:00:06]} 71.
Qd8 {[%clk 00:23:18]} {[%emt 00:00:07]} Rg6+ {[%clk 00:07:34]} {[%emt
00:00:19]} 72. Kf5 {[%clk 00:23:09]} {[%emt 00:00:42]} Rc6 {[%clk 00:07:38]}
{[%emt 00:00:24]} 73. Ke5 {[%clk 00:22:57]} {[%emt 00:00:44]} Rh6 {[%clk
00:07:56]} {[%emt 00:00:11]} 74. Qe7 {[%clk 00:23:21]} {[%emt 00:00:06]} Rg6
{[%clk 00:07:54]} {[%emt 00:00:32]} 75. Qf7 {[%clk 00:23:15]} {[%emt 00:00:36]}
Rh6 {[%clk 00:08:07]} {[%emt 00:00:17]} 76. Ke4 {[%clk 00:22:58]} {[%emt
00:00:46]} Rf6 {[%clk 00:06:56]} {[%emt 00:01:43]} 77. Qe7 {[%clk 00:22:30]}
{[%emt 00:00:55]} Rh6 {[%clk 00:07:21]} {[%emt 00:00:07]} 78. Kf5 {[%clk
00:22:41]} {[%emt 00:00:20]} Rc6 {[%clk 00:07:14]} {[%emt 00:00:36]} 79. Qe4
{[%clk 00:22:36]} {[%emt 00:00:34]} Rh6 {[%clk 00:07:31]} {[%emt 00:00:14]} 80.
Ke5+ {[%clk 00:22:37]} {[%emt 00:00:30]} Kh8 {[%clk 00:07:49]} {[%emt
00:00:11]} 81. Qf5 {[%clk 00:22:56]} {[%emt 00:00:08]} Kg8 {[%clk 00:08:06]}
{[%emt 00:00:16]} 82. Qg5 {[%clk 00:21:55]} {[%emt 00:01:31]} Kh7 {[%clk
00:08:32]} {[%emt 00:00:04]} 83. Qd8 {[%clk 00:22:04]} {[%emt 00:00:21]} Rc6
{[%clk 00:07:43]} {[%emt 00:01:19]} 84. Qd3+ {[%clk 00:21:59]} {[%emt
00:00:34]} Kh8 {[%clk 00:07:53]} {[%emt 00:00:21]} 85. Qh3+ {[%clk 00:22:23]}
{[%emt 00:00:05]} Kg8 {[%clk 00:08:05]} {[%emt 00:00:18]} 86. Qh4 {[%clk
00:21:48]} {[%emt 00:01:01]} Rh6 {[%clk 00:07:45]} {[%emt 00:00:54]} 87. Qg5
{[%clk 00:19:41]} {[%emt 00:02:37]} Kh7 {[%clk 00:08:08]} {[%emt 00:00:08]} 88.
Kf5 {[%clk 00:19:12]} {[%emt 00:00:59]} Rb6 {[%clk 00:08:20]} {[%emt 00:00:18]}
89. Qh5+ {[%clk 00:19:19]} {[%emt 00:00:21]} Rh6 {[%clk 00:08:44]} {[%emt
00:00:08]} 90. Qf7 {[%clk 00:19:42]} {[%emt 00:00:05]} Rb6 {[%clk 00:08:27]}
{[%emt 00:00:48]} 91. Kg5 {[%clk 00:20:03]} {[%emt 00:00:09]} Rb5+ {[%clk
00:07:48]} {[%emt 00:01:09]} 92. Kg4 {[%clk 00:18:35]} {[%emt 00:01:59]} Rb6
{[%clk 00:08:04]} {[%emt 00:00:14]} 93. Qf5+ {[%clk 00:18:38]} {[%emt
00:00:25]} Kh8 {[%clk 00:08:26]} {[%emt 00:00:09]} 94. Qh5+ {[%clk 00:18:43]}
{[%emt 00:00:25]} Rh6 {[%clk 00:08:37]} {[%emt 00:00:19]} 95. Qe8+ {[%clk
00:18:49]} {[%emt 00:00:24]} Kh7 {[%clk 00:09:01]} {[%emt 00:00:07]} 96. Kg5
{[%clk 00:18:57]} {[%emt 00:00:22]} Rf6 {[%clk 00:08:53]} {[%emt 00:00:37]} 97.
Qe4+ {[%clk 00:19:01]} {[%emt 00:00:26]} Kh8 {[%clk 00:08:54]} {[%emt
00:00:29]} 98. Qh1+ {[%clk 00:18:57]} {[%emt 00:00:34]} Kg8 {[%clk 00:09:17]}
{[%emt 00:00:08]} 99. f5 {[%clk 00:19:12]} {[%emt 00:00:15]} Rh6 {[%clk
00:09:15]} {[%emt 00:00:32]} 100. Qa8+ {[%clk 00:19:37]} {[%emt 00:00:04]} Kh7
{[%clk 00:09:40]} {[%emt 00:00:05]} 101. Kf4 {[%clk 00:19:54]} {[%emt
00:00:12]} Rf6 {[%clk 00:07:20]} {[%emt 00:02:51]} 102. Ke5 {[%clk 00:20:19]}
{[%emt 00:00:05]} Rh6 {[%clk 00:06:19]} {[%emt 00:01:30]} 103. Qe8 {[%clk
00:20:38]} {[%emt 00:00:07]} Rf6 {[%clk 00:05:56]} {[%emt 00:00:58]} 104. Qe6
{[%clk 00:20:34]} {[%emt 00:00:34]} Rf8 {[%clk 00:05:34]} {[%emt 00:00:51]} 105.
Qe7 {[%clk 00:15:19]} {[%emt 00:05:45]} Kg8 {[%clk 00:05:48]} {[%emt 00:00:17]}
106. Ke6 {[%clk 00:15:24]} {[%emt 00:00:25]} Ra8 {[%clk 00:05:48]} {[%emt
00:00:29]} 107. Qf7+ {[%clk 00:14:54]} {[%emt 00:01:00]} Kh8 {[%clk 00:06:11]}
{[%emt 00:00:07]} 108. Qb7 {[%clk 00:14:03]} {[%emt 00:01:22]} Rf8 {[%clk
00:06:15]} {[%emt 00:00:26]} 109. Qd5 {[%clk 00:14:11]} {[%emt 00:00:21]} Rf6+
{[%clk 00:05:23]} {[%emt 00:01:22]} 110. Ke7 {[%clk 00:14:24]} {[%emt
00:00:17]} Ra6 {[%clk 00:04:35]} {[%emt 00:01:17]} 111. Qe6 {[%clk 00:13:37]}
{[%emt 00:01:18]} Ra7+ {[%clk 00:05:02]} {[%emt 00:00:04]} 112. Kf8 {[%clk
00:13:53]} {[%emt 00:00:11]} Ra8+ {[%clk 00:05:10]} {[%emt 00:00:25]} 113. Kf7
{[%clk 00:14:10]} {[%emt 00:00:11]} Ra7+ {[%clk 00:04:32]} {[%emt 00:01:09]}
114. Kg6 {[%clk 00:14:22]} {[%emt 00:00:11]} Ra8 {[%clk 00:04:25]} {[%emt
00:00:45]} 115. f6 {[%clk 00:14:40]} {[%emt 00:00:11]} Rg8 {[%clk 00:04:26]}
{[%emt 00:00:29]} 116. Qh3# {[%clk 00:15:00]} {[%emt 00:00:10]} 1-0

[Event "NJSK 2024 C"]
[Site "Groningen, Netherlands"]
[Date "2024.04.28"]
[Round "2.2"]
[White "Kurt, Sascha"]
[Black "Darie, Aden"]
[Result "1-0"]
[TimeControl "90min/40moves + 30min + 30sec/move"]
[WhiteElo "2096"]
[BlackElo "1923"]

1. e4 {[%clk 01:30:55]} {[%emt 00:00:04]} c6 {[%clk 01:30:55]} {[%emt
00:00:05]} 2. d4 {[%clk 01:31:21]} {[%emt 00:00:04]} d5 {[%clk 01:31:21]}
{[%emt 00:00:04]} 3. e5 {[%clk 01:31:34]} {[%emt 00:00:17]} c5 {[%clk
01:31:46]} {[%emt 00:00:06]} 4. dxc5 {[%clk 01:32:00]} {[%emt 00:00:04]} e6
{[%clk 01:32:11]} {[%emt 00:00:05]} 5. Be3 {[%clk 01:32:02]} {[%emt 00:00:28]}
Nd7 {[%clk 01:32:35]} {[%emt 00:00:07]} 6. b4 {[%clk 01:25:04]} {[%emt
00:07:28]} Nxe5 {[%clk 01:29:45]} {[%emt 00:03:20]} 7. Nf3 {[%clk 01:24:36]}
{[%emt 00:00:58]} Nxf3+ {[%clk 01:28:27]} {[%emt 00:01:47]} 8. Qxf3 {[%clk
01:25:00]} {[%emt 00:00:06]} Qf6 {[%clk 01:28:05]} {[%emt 00:00:52]} 9. Qxf6
{[%clk 01:24:36]} {[%emt 00:00:55]} Nxf6 {[%clk 01:28:30]} {[%emt 00:00:04]} 10.
f3 {[%clk 01:19:21]} {[%emt 00:05:45]} Bd7 {[%clk 01:27:03]} {[%emt 00:01:57]}
11. c3 {[%clk 01:17:32]} {[%emt 00:02:20]} Be7 {[%clk 01:21:58]} {[%emt
00:05:34]} 12. Nd2 {[%clk 01:17:21]} {[%emt 00:00:41]} O-O {[%clk 01:20:58]}
{[%emt 00:01:30]} 13. Bd3 {[%clk 01:16:26]} {[%emt 00:01:25]} a5 {[%clk
01:17:26]} {[%emt 00:04:03]} 14. a3 {[%clk 01:13:04]} {[%emt 00:03:53]} b6
{[%clk 01:14:54]} {[%emt 00:03:01]} 15. cxb6 {[%clk 01:09:37]} {[%emt
00:03:57]} axb4 {[%clk 01:08:41]} {[%emt 00:06:42]} 16. cxb4 {[%clk 01:08:52]}
{[%emt 00:01:15]} d4 {[%clk 00:57:22]} {[%emt 00:11:50]} 17. Bxd4 {[%clk
01:06:48]} {[%emt 00:02:33]} Bc6 {[%clk 00:54:27]} {[%emt 00:03:26]} 18. Ke2
{[%clk 00:58:52]} {[%emt 00:08:25]} Rfb8 {[%clk 00:51:47]} {[%emt 00:03:07]} 19.
Rhc1 {[%clk 00:56:12]} {[%emt 00:03:13]} Bb7 {[%clk 00:51:19]} {[%emt
00:00:59]} 20. Bc5 {[%clk 00:45:04]} {[%emt 00:11:38]} Bd8 {[%clk 00:50:31]}
{[%emt 00:01:18]} 21. a4 {[%clk 00:37:42]} {[%emt 00:07:52]} Nd5 {[%clk
00:50:25]} {[%emt 00:00:36]} 22. Bd6 {[%clk 00:31:32]} {[%emt 00:06:39]} Bxb6
{[%clk 00:50:34]} {[%emt 00:00:21]} 23. Bxb8 {[%clk 00:24:59]} {[%emt
00:07:04]} Rxb8 {[%clk 00:50:58]} {[%emt 00:00:05]} 24. Be4 {[%clk 00:22:56]}
{[%emt 00:02:33]} Bd4 {[%clk 00:49:40]} {[%emt 00:01:48]} 25. Rab1 {[%clk
00:19:11]} {[%emt 00:04:16]} Nc3+ {[%clk 00:49:05]} {[%emt 00:01:05]} 26. Rxc3
{[%clk 00:19:33]} {[%emt 00:00:07]} Bxc3 {[%clk 00:49:28]} {[%emt 00:00:07]} 27.
Bxb7 {[%clk 00:19:58]} {[%emt 00:00:05]} Bxd2 {[%clk 00:49:29]} {[%emt
00:00:29]} 28. Kxd2 {[%clk 00:20:23]} {[%emt 00:00:05]} Rxb7 {[%clk 00:49:56]}
{[%emt 00:00:04]} 29. b5 {[%clk 00:20:01]} {[%emt 00:00:52]} Kf8 {[%clk
00:50:11]} {[%emt 00:00:15]} 30. a5 {[%clk 00:20:16]} {[%emt 00:00:14]} Ke7
{[%clk 00:50:13]} {[%emt 00:00:28]} 31. b6 {[%clk 00:20:20]} {[%emt 00:00:26]}
Kd8 {[%clk 00:50:11]} {[%emt 00:00:32]} 32. Rc1 {[%clk 00:17:09]} {[%emt
00:03:41]} Kd7 {[%clk 00:50:26]} {[%emt 00:00:15]} 33. Kc3 {[%clk 00:17:14]}
{[%emt 00:00:24]} Kc8 {[%clk 00:50:49]} {[%emt 00:00:08]} 34. Kb4+ {[%clk
00:17:40]} {[%emt 00:00:04]} Kb8 {[%clk 00:51:14]} {[%emt 00:00:05]} 35. Rd1
{[%clk 00:17:27]} {[%emt 00:00:44]} Re7 {[%clk 00:51:25]} {[%emt 00:00:18]} 36.
a6 {[%clk 00:17:44]} {[%emt 00:00:14]} Re8 {[%clk 00:51:51]} {[%emt 00:00:04]}
37. Kb5 {[%clk 00:18:02]} {[%emt 00:00:12]} e5 {[%clk 00:52:11]} {[%emt
00:00:09]} 38. a7+ {[%clk 00:18:11]} {[%emt 00:00:21]} Ka8 {[%clk 00:52:30]}
{[%emt 00:00:11]} 39. Ka6 {[%clk 00:18:29]} {[%emt 00:00:13]} 1-0

[Event "NJSK 2024 C"]
[Site "Groningen, Netherlands"]
[Date "2024.04.28"]
[Round "2.3"]
[White "Leenen, Boyd"]
[Black "Aravindhan, Achyuth"]
[Result "1/2-1/2"]
[TimeControl "90min/40moves + 30min + 30sec/move"]
[WhiteElo "1920"]
[BlackElo "2071"]

1. d4 {[%clk 01:30:58]} {[%emt 00:00:02]} Nf6 {[%clk 01:30:56]} {[%emt
00:00:04]} 2. c4 {[%clk 01:31:21]} {[%emt 00:00:07]} g6 {[%clk 01:31:22]}
{[%emt 00:00:05]} 3. Nc3 {[%clk 01:31:35]} {[%emt 00:00:15]} Bg7 {[%clk
01:31:48]} {[%emt 00:00:05]} 4. e4 {[%clk 01:31:49]} {[%emt 00:00:15]} d6
{[%clk 01:32:15]} {[%emt 00:00:03]} 5. h3 {[%clk 01:32:12]} {[%emt 00:00:07]}
O-O {[%clk 01:32:11]} {[%emt 00:00:35]} 6. Be3 {[%clk 01:32:34]} {[%emt
00:00:07]} e5 {[%clk 01:31:02]} {[%emt 00:01:40]} 7. Nf3 {[%clk 01:32:26]}
{[%emt 00:00:38]} Nc6 {[%clk 01:26:46]} {[%emt 00:04:46]} 8. dxe5 {[%clk
01:32:19]} {[%emt 00:00:37]} dxe5 {[%clk 01:22:55]} {[%emt 00:04:21]} 9. Qxd8
{[%clk 01:31:28]} {[%emt 00:01:21]} Rxd8 {[%clk 01:23:19]} {[%emt 00:00:06]} 10.
Be2 {[%clk 01:29:55]} {[%emt 00:02:02]} Nd4 {[%clk 01:08:33]} {[%emt 00:15:17]}
11. Nxd4 {[%clk 01:16:04]} {[%emt 00:14:22]} exd4 {[%clk 01:08:50]} {[%emt
00:00:13]} 12. O-O-O {[%clk 01:16:09]} {[%emt 00:00:24]} c5 {[%clk 00:59:29]}
{[%emt 00:09:51]} 13. Bg5 {[%clk 01:15:37]} {[%emt 00:01:02]} Re8 {[%clk
00:58:25]} {[%emt 00:01:34]} 14. Bxf6 {[%clk 01:15:41]} {[%emt 00:00:27]} Bxf6
{[%clk 00:57:55]} {[%emt 00:01:00]} 15. Nd5 {[%clk 01:15:55]} {[%emt 00:00:16]}
Bd8 {[%clk 00:55:57]} {[%emt 00:02:28]} 16. Bd3 {[%clk 01:15:42]} {[%emt
00:00:43]} Bd7 {[%clk 00:55:14]} {[%emt 00:01:12]} 17. f4 {[%clk 01:12:20]}
{[%emt 00:03:52]} Bc6 {[%clk 00:48:54]} {[%emt 00:06:51]} 18. Rde1 {[%clk
01:09:34]} {[%emt 00:03:16]} Kg7 {[%clk 00:45:19]} {[%emt 00:04:04]} 19. g3
{[%clk 01:05:11]} {[%emt 00:04:53]} Ba5 {[%clk 00:42:26]} {[%emt 00:03:24]} 20.
Re2 {[%clk 01:04:57]} {[%emt 00:00:43]} Rad8 {[%clk 00:42:06]} {[%emt
00:00:50]} 21. Rhh2 {[%clk 01:01:33]} {[%emt 00:03:55]} a6 {[%clk 00:39:06]}
{[%emt 00:03:30]} 22. b3 {[%clk 00:56:07]} {[%emt 00:05:55]} b5 {[%clk
00:30:13]} {[%emt 00:09:24]} 23. g4 {[%clk 00:46:22]} {[%emt 00:10:14]} bxc4
{[%clk 00:25:55]} {[%emt 00:04:49]} 24. Bxc4 {[%clk 00:46:34]} {[%emt
00:00:17]} Bxd5 {[%clk 00:19:22]} {[%emt 00:07:03]} 25. exd5 {[%clk 00:45:58]}
{[%emt 00:01:06]} Bc7 {[%clk 00:19:12]} {[%emt 00:00:41]} 26. Rhf2 {[%clk
00:44:29]} {[%emt 00:01:59]} Rxe2 {[%clk 00:19:28]} {[%emt 00:00:13]} 27. Rxe2
{[%clk 00:44:24]} {[%emt 00:00:35]} Bxf4+ {[%clk 00:19:47]} {[%emt 00:00:11]}
28. Kc2 {[%clk 00:44:49]} {[%emt 00:00:06]} Be3 {[%clk 00:19:08]} {[%emt
00:01:08]} 29. Bxa6 {[%clk 00:43:40]} {[%emt 00:01:40]} Ra8 {[%clk 00:18:49]}
{[%emt 00:00:48]} 30. Bc4 {[%clk 00:43:54]} {[%emt 00:00:17]} Rxa2+ {[%clk
00:19:09]} {[%emt 00:00:09]} 31. Kd3 {[%clk 00:44:21]} {[%emt 00:00:03]} Ra1
{[%clk 00:18:31]} {[%emt 00:01:08]} 32. d6 {[%clk 00:42:51]} {[%emt 00:02:00]}
Kf8 {[%clk 00:17:27]} {[%emt 00:01:33]} 33. Ke4 {[%clk 00:42:24]} {[%emt
00:00:59]} Ke8 {[%clk 00:10:40]} {[%emt 00:07:17]} 34. Kd5 {[%clk 00:40:01]}
{[%emt 00:02:52]} Kd8 {[%clk 00:10:10]} {[%emt 00:01:00]} 35. Kc6 {[%clk
00:36:08]} {[%emt 00:04:23]} f6 {[%clk 00:08:21]} {[%emt 00:02:20]} 36. Kd5
{[%clk 00:34:50]} {[%emt 00:01:47]} 1/2-1/2